[Event "RUS-chT Rapid Men 2018"]
[Site "Sochi"]
[Date "2018.10.08"]
[Round "5"]
[White "Chos, Alexey"]
[Black "Gogolev, Artem"]
[Result "1-0"]
[ECO "B29"]
[WhiteElo "2296"]
[BlackElo "2389"]
[Annotator "NA"]
[PlyCount "59"]
[EventDate "2018.10.05"]
[EventType "swiss"]
[EventCountry "RUS"]
[SourceTitle "playchess.com"]
[Source "ChessBase"]
[SourceQuality "1"]
[TimeControl "900+10"]

1. e4 {[%emt 0:00:00]} c5 {[%emt 0:00:00]} 2. Nf3 {[%emt 0:00:00]} Nf6 {[%emt 0:00:00]} 3. Nc3 {[%emt 0:00:00]} d5 {[%emt 0:00:00]} 4. exd5 {[%emt 0:00:00]} Nxd5 {[%emt 0:00:00]} 5. Bc4 {[%emt 0:00:04]} Nxc3 {[%emt 0:00:01]} 6. bxc3 {[%emt 0:00:01]} Nc6 {[%emt 0:00:02]} 7. O-O {[%emt 0:00:03]} e6 {[%emt 0:00:02]} 8. d4 {[%emt 0:00:56]} Be7 {[%emt 0:00:05]} 9. Qe2 {[%emt 0:01:20]} Qc7 {[%emt 0:02:11]} 10. Rd1 {[%emt 0:03:51]} O-O {[%emt 0:00:28]} 11. Be3 {[%emt 0:00:44]} b6 {[%emt 0:02:25]} 12. d5 {[%emt 0:00:24]} exd5 {[%emt 0:00:05]} 13. Bxd5 {[%emt 0:00:02]} Bb7 {[%emt 0:02:49]} 14. Ng5 Na5 {[%emt 0:03:56]} 15. Qg4 {[%emt 0:03:22]} Bxd5 {[%emt 0:01:21]} 16. Rxd5 {[%emt 0:00:03]} Rad8 {[%emt 0:00:31]} 17. Rad1 {[%emt 0:00:31]} Rxd5 {[%emt 0:00:40]} 18. Rxd5 {[%emt 0:00:07]} Rd8 {[%emt 0:00:52]} 19. Qe4 {[%emt 0:00:24]} Bxg5 {[%emt 0:01:07]} 20. Bxg5 {[%emt 0:00:04]} Rf8 {[%emt 0:01:07]} 21. h4 {[%emt 0:00:38]} Qc6 {[%emt 0:00:06]} 22. c4 {[%emt 0:01:07]} h6 {[%emt 0:00:03]} 23. Bd2 {[%emt 0:00:16]} Re8 {[%emt 0:00:08]} 24. Qd3 {[%emt 0:00:25]} Qa4 {[%emt 0:00:25]} 25. Bc3 {[%emt 0:01:38]} Qxc4 {[%emt 0:00:27]} 26. Qg3 {[%emt 0:00:26]} g6 {[%emt 0:00:01]} 27. Re5 {[%emt 0:00:45]} Rxe5 {[%emt 0:00:20]} 28. Qxe5 {[%emt 0:00:05]} Kf8 {[%emt 0:00:01]} 29. Qd6+ {[%emt 0:00:08]} Ke8 {[%emt 0:00:02]} 30. Bf6 {[%emt 0:00:02]} 1-0

[Event "RUS-chT Rapid Men 2018"]
[Site "Sochi"]
[Date "2018.10.08"]
[Round "5"]
[White "Nazaretyan, Tigran"]
[Black "Kuzmin, Roman"]
[Result "1-0"]
[ECO "D91"]
[WhiteElo "2248"]
[BlackElo "2127"]
[Annotator "NA"]
[PlyCount "89"]
[EventDate "2018.10.05"]
[EventType "swiss"]
[EventCountry "RUS"]
[SourceTitle "playchess.com"]
[Source "ChessBase"]
[SourceQuality "1"]
[TimeControl "900+10"]

1. d4 {[%emt 0:00:00]} Nf6 {[%emt 0:00:00]} 2. c4 {[%emt 0:00:00]} g6 {[%emt 0:00:00]} 3. Nc3 {[%emt 0:00:00]} d5 {[%emt 0:00:00]} 4. Nf3 {[%emt 0:00:00]} Bg7 {[%emt 0:00:00]} 5. Bg5 {[%emt 0:00:00]} Ne4 {[%emt 0:00:00]} 6. Bh4 {[%emt 0:00:00]} Nxc3 {[%emt 0:00:05]} 7. bxc3 {[%emt 0:00:01]} c5 {[%emt 0:00:02]} 8. e3 {[%emt 0:00:15]} O-O {[%emt 0:00:58]} 9. cxd5 {[%emt 0:00:09]} cxd4 {[%emt 0:00:02]} 10. cxd4 {[%emt 0:00:14]} Qxd5 {[%emt 0:00:09]} 11. Bxe7 {[%emt 0:01:11]} Re8 {[%emt 0:00:01]} 12. Bh4 {[%emt 0:01:19]} Bg4 {[%emt 0:00:08]} 13. Be2 {[%emt 0:00:29]} Nc6 {[%emt 0:04:54]} 14. O-O {[%emt 0:00:31]} Rac8 {[%emt 0:01:51]} 15. h3 {[%emt 0:01:03]} Bf5 {[%emt 0:00:25]} 16. Bd3 {[%emt 0:01:04]} Bxd3 {[%emt 0:01:48]} 17. Qxd3 {[%emt 0:00:06]} Nb4 {[%emt 0:00:21]} 18. Qb3 {[%emt 0:00:58]} Qxb3 {[%emt 0:00:54]} 19. axb3 {[%emt 0:00:04]} a6 {[%emt 0:00:02]} 20. Rac1 {[%emt 0:01:19]} Nd3 {[%emt 0:00:05]} 21. Rc4 {[%emt 0:02:45]} Nb2 {[%emt 0:01:13]} 22. Rxc8 {[%emt 0:00:23]} Rxc8 {[%emt 0:00:02]} 23. Rb1 {[%emt 0:01:16]} Nd3 {[%emt 0:00:13]} 24. b4 {[%emt 0:00:14]} Bf8 {[%emt 0:01:11]} 25. b5 {[%emt 0:00:23]} a5 {[%emt 0:00:01]} 26. Kf1 {[%emt 0:01:38]} a4 {[%emt 0:01:04]} 27. Ke2 {[%emt 0:00:04]} Nc1+ {[%emt 0:00:43]} 28. Kd1 {[%emt 0:00:08]} Na2 {[%emt 0:00:29]} 29. Ra1 {[%emt 0:00:35]} Nc3+ {[%emt 0:00:10]} 30. Kd2 {[%emt 0:00:00]} a3 {[%emt 0:00:09]} 31. b6 {[%emt 0:00:38]} Ne4+ {[%emt 0:00:41]} 32. Ke2 {[%emt 0:01:02]} f5 {[%emt 0:00:27]} 33. Ne1 {[%emt 0:00:02]} Bb4 {[%emt 0:01:25]} 34. f3 {[%emt 0:00:04]} Nc3+ {[%emt 0:00:08]} 35. Kd3 {[%emt 0:00:01]} Nb5 {[%emt 0:00:17]} 36. Nc2 {[%emt 0:00:23]} Bc3 {[%emt 0:00:35]} 37. Nxa3 {[%emt 0:00:18]} Bxa1 {[%emt 0:00:18]} 38. Nxb5 {[%emt 0:00:01]} Bb2 {[%emt 0:00:08]} 39. Be7 {[%emt 0:00:10]} Rc6 {[%emt 0:00:07]} 40. Bc5 {[%emt 0:00:05]} Bc1 {[%emt 0:00:13]} 41. Nd6 {[%emt 0:00:33]} Kf8 {[%emt 0:00:18]} 42. Nxb7+ {[%emt 0:00:12]} Ke8 {[%emt 0:00:01]} 43. Na5 {[%emt 0:00:03]} Rc8 {[%emt 0:00:07]} 44. b7 {[%emt 0:00:10]} Rd8 {[%emt 0:00:03]} 45. Nc6 {[%emt 0:00:12]} 1-0

[Event "RUS-chT Rapid Men 2018"]
[Site "Sochi"]
[Date "2018.10.08"]
[Round "5"]
[White "Nuristani, Iman"]
[Black "Demidov, Mikhail"]
[Result "0-1"]
[ECO "D10"]
[WhiteElo "2242"]
[BlackElo "2514"]
[Annotator "ChessBase"]
[PlyCount "108"]
[EventDate "2018.10.05"]
[EventType "swiss"]
[EventCountry "RUS"]
[SourceTitle "playchess.com"]
[Source "ChessBase"]
[SourceQuality "1"]
[TimeControl "900+10"]

1. d4 {[%emt 0:00:00]} d5 {[%emt 0:00:00]} 2. c4 {[%emt 0:00:00]} c6 {[%emt 0:00:00]} 3. cxd5 {[%emt 0:00:00]} cxd5 {[%emt 0:00:00]} 4. Bg5 {[%emt 0:00:00]} h6 {[%emt 0:00:36]} 5. Bh4 {[%emt 0:00:00]} Qb6 {[%emt 0:00:13]} 6. Nc3 {[%emt 0:00:00]} e6 {[%emt 0:00:01]} 7. Qd2 {[%emt 0:00:08]} Be7 {[%emt 0:00:08]} 8. Bxe7 {[%emt 0:00:06]} Nxe7 {[%emt 0:00:03]} 9. e3 {[%emt 0:00:31]} Nbc6 {[%emt 0:00:06]} 10. Rc1 {[%emt 0:00:04]} Bd7 {[%emt 0:00:03]} 11. Bd3 {[%emt 0:00:04]} O-O {[%emt 0:00:22]} 12. Nge2 {[%emt 0:00:07]} Na5 {[%emt 0:00:20]} 13. b3 {[%emt 0:00:33]} Rfc8 {[%emt 0:00:10]} 14. O-O {[%emt 0:00:05]} Rc7 {[%emt 0:00:23]} 15. Nf4 {[%emt 0:04:37]} Rac8 {[%emt 0:00:44]} 16. Nce2 {[%emt 0:00:41]} Nac6 {[%emt 0:02:08]} 17. Bb1 {[%emt 0:00:11]} Qb4 {[%emt 0:01:29]} 18. Qb2 {[%emt 0:03:10]} Qd6 {[%emt 0:00:31]} 19. Nd3 {[%emt 0:02:06]} b6 {[%emt 0:00:07]} 20. h4 {[%emt 0:00:15]} Be8 {[%emt 0:00:07]} 21. Nef4 {[%emt 0:00:43]} f6 {[%emt 0:00:13]} 22. Qd2 {[%emt 0:02:49]} e5 {[%emt 0:00:35]} 23. dxe5 {[%emt 0:00:02]} fxe5 {[%emt 0:00:01]} 24. Ne2 {[%emt 0:00:01]} Qf6 {[%emt 0:00:44]} 25. Nb4 {[%emt 0:01:09]} Bf7 {[%emt 0:00:23]} 26. Nxc6 {[%emt 0:00:19]} Nxc6 {[%emt 0:00:04]} 27. h5 {[%emt 0:00:04]} e4 {[%emt 0:00:36]} 28. Ng3 {[%emt 0:00:02]} Qe5 {[%emt 0:00:04]} 29. Qe2 {[%emt 0:00:56]} Ne7 {[%emt 0:00:11]} 30. Rxc7 {[%emt 0:00:30]} Rxc7 {[%emt 0:00:03]} 31. Rd1 {[%emt 0:00:27]} Kh8 {[%emt 0:01:15]} 32. Qg4 {[%emt 0:00:14]} Ng8 {[%emt 0:00:28]} 33. Qf4 {[%emt 0:00:24]} Qxf4 {[%emt 0:00:16]} 34. exf4 {[%emt 0:00:01]} Nf6 {[%emt 0:00:04]} 35. Kh2 {[%emt 0:00:11]} Rc5 {[%emt 0:00:14]} 36. Nf5 {[%emt 0:00:18]} Bxh5 {[%emt 0:00:11]} 37. Rd2 {[%emt 0:00:01]} Bg6 {[%emt 0:00:30]} 38. Ne3 {[%emt 0:00:04]} Bf7 {[%emt 0:00:10]} 39. g4 {[%emt 0:00:05]} g5 {[%emt 0:00:25]} 40. Kg3 {[%emt 0:00:12]} a5 {[%emt 0:00:17]} 41. fxg5 {[%emt 0:00:16]} hxg5 {[%emt 0:00:02]} 42. Rd1 {[%emt 0:00:11]} Be6 {[%emt 0:00:16]} 43. Rd2 {[%emt 0:00:10]} Kg7 {[%emt 0:00:30]} 44. Bc2 {[%emt 0:00:05]} Rc3 {[%emt 0:00:05]} 45. Bd1 {[%emt 0:00:03]} b5 {[%emt 0:00:43]} 46. Be2 {[%emt 0:00:06]} b4 {[%emt 0:00:02]} 47. Kg2 {[%emt 0:00:37]} Kf7 {[%emt 0:00:11]} 48. Bd1 {[%emt 0:00:08]} Ke7 {[%emt 0:00:24]} 49. Be2 {[%emt 0:00:03]} Kd6 {[%emt 0:01:36]} 50. Nd1 {[%emt 0:00:09]} Rc1 {[%emt 0:00:18]} 51. Ne3 {[%emt 0:00:02]} Ke5 {[%emt 0:00:09]} 52. Kg3 {[%emt 0:00:28]} d4 {[%emt 0:00:24]} 53. Nc4+ {[%emt 0:00:10]} Bxc4 {[%emt 0:00:02]} 54. Bxc4 {[%emt 0:00:08]} Rc3+ {[%emt 0:00:03]} 0-1

[Event "RUS-chT Rapid Men 2018"]
[Site "Sochi"]
[Date "2018.10.08"]
[Round "5"]
[White "Taysayev, Timur"]
[Black "Pingin, Artem"]
[Result "0-1"]
[ECO "B86"]
[WhiteElo "2225"]
[BlackElo "1981"]
[Annotator "NA"]
[PlyCount "57"]
[EventDate "2018.10.05"]
[EventType "swiss"]
[EventCountry "RUS"]
[SourceTitle "playchess.com"]
[Source "ChessBase"]
[SourceQuality "1"]
[TimeControl "900+10"]

1. e4 {[%emt 0:00:00]} c5 {[%emt 0:00:00]} 2. Nf3 {[%emt 0:00:00]} e6 {[%emt 0:00:00]} 3. d4 {[%emt 0:00:22]} cxd4 {[%emt 0:00:00]} 4. Nxd4 {[%emt 0:00:01]} Nf6 {[%emt 0:00:05]} 5. Nc3 {[%emt 0:00:01]} d6 {[%emt 0:00:02]} 6. Bc4 {[%emt 0:00:20]} Be7 {[%emt 0:00:11]} 7. Qe2 {[%emt 0:00:14]} a6 {[%emt 0:00:09]} 8. g4 {[%emt 0:00:02]} h6 {[%emt 0:00:32]} 9. Rg1 {[%emt 0:00:08]} b5 {[%emt 0:00:18]} 10. Bb3 {[%emt 0:00:17]} Bb7 {[%emt 0:00:03]} 11. Bxe6 {[%emt 0:00:46]} fxe6 {[%emt 0:03:04]} 12. Nxe6 {[%emt 0:00:02]} Qc8 {[%emt 0:00:22]} 13. Nxg7+ {[%emt 0:00:24]} Kf7 {[%emt 0:00:01]} 14. Nf5 {[%emt 0:00:07]} Bf8 {[%emt 0:00:10]} 15. Bxh6 {[%emt 0:03:45]} Rxh6 {[%emt 0:05:00]} 16. Nxh6+ {[%emt 0:00:16]} Bxh6 {[%emt 0:00:01]} 17. g5 {[%emt 0:00:03]} Qg8 {[%emt 0:00:31]} 18. f4 {[%emt 0:01:02]} Bf8 {[%emt 0:00:29]} 19. O-O-O {[%emt 0:00:07]} Nfd7 {[%emt 0:00:29]} 20. e5 {[%emt 0:02:58]} dxe5 {[%emt 0:00:09]} 21. f5 {[%emt 0:00:48]} Bc5 {[%emt 0:00:31]} 22. Rg3 {[%emt 0:01:46]} Kf8 {[%emt 0:02:17]} 23. f6 {[%emt 0:00:29]} Qg6 {[%emt 0:02:42]} 24. h4 {[%emt 0:00:17]} b4 {[%emt 0:01:25]} 25. Na4 {[%emt 0:03:51]} Ba7 {[%emt 0:00:22]} 26. Qc4 {[%emt 0:00:30]} Bc6 {[%emt 0:00:07]} 27. Qxb4+ {[%emt 0:00:19]} Kg8 {[%emt 0:00:04]} 28. Nc3 {[%emt 0:00:24]} Bf2 {[%emt 0:00:06]} 29. Rgd3 0-1

[Event "RUS-chT Rapid Men 2018"]
[Site "Sochi"]
[Date "2018.10.08"]
[Round "5"]
[White "Garifullina, Leya"]
[Black "Basiev, Valeriy P."]
[Result "1-0"]
[ECO "B03"]
[WhiteElo "2106"]
[BlackElo "1990"]
[Annotator "NA"]
[PlyCount "58"]
[EventDate "2018.10.05"]
[EventType "swiss"]
[EventCountry "RUS"]
[SourceTitle "playchess.com"]
[Source "ChessBase"]
[SourceQuality "1"]
[TimeControl "900+10"]

1. e4 {[%emt 0:00:00]} Nf6 {[%emt 0:00:00]} 2. e5 {[%emt 0:00:00]} Nd5 {[%emt 0:00:00]} 3. c4 {[%emt 0:00:00]} Nb6 {[%emt 0:00:00]} 4. d4 {[%emt 0:00:00]} d6 {[%emt 0:00:00]} 5. exd6 {[%emt 0:00:00]} cxd6 {[%emt 0:00:24]} 6. Nc3 {[%emt 0:00:00]} g6 {[%emt 0:00:05]} 7. Be3 {[%emt 0:00:02]} Bg7 {[%emt 0:00:02]} 8. Rc1 {[%emt 0:00:01]} Nc6 {[%emt 0:00:34]} 9. d5 {[%emt 0:00:14]} Ne5 {[%emt 0:00:26]} 10. Be2 {[%emt 0:00:07]} O-O {[%emt 0:00:07]} 11. b3 {[%emt 0:00:01]} h5 {[%emt 0:05:51]} 12. h3 {[%emt 0:00:09]} e6 {[%emt 0:02:14]} 13. dxe6 {[%emt 0:00:58]} fxe6 {[%emt 0:01:49]} 14. Nf3 {[%emt 0:00:23]} a6 {[%emt 0:00:54]} 15. O-O {[%emt 0:00:49]} Qc7 {[%emt 0:00:24]} 16. Nxe5 {[%emt 0:00:14]} Bxe5 {[%emt 0:00:04]} 17. Ne4 {[%emt 0:00:37]} Rd8 {[%emt 0:01:20]} 18. Bg5 {[%emt 0:00:25]} Bd7 {[%emt 0:01:03]} 19. Bxd8 {[%emt 0:00:10]} Rxd8 {[%emt 0:00:01]} 20. Qd2 {[%emt 0:01:08]} Bc6 {[%emt 0:00:21]} 21. Qc2 {[%emt 0:00:40]} Qf7 {[%emt 0:00:23]} 22. Ng5 {[%emt 0:01:07]} Qf6 {[%emt 0:00:43]} 23. f4 {[%emt 0:01:48]} Bxf4 {[%emt 0:00:47]} 24. Rxf4 {[%emt 0:00:01]} Qxg5 {[%emt 0:00:01]} 25. Rf2 {[%emt 0:00:03]} d5 {[%emt 0:00:36]} 26. Rcf1 {[%emt 0:01:02]} dxc4 {[%emt 0:00:25]} 27. Bxc4 {[%emt 0:00:15]} Bd5 {[%emt 0:00:32]} 28. Bxd5 {[%emt 0:00:54]} Nxd5 {[%emt 0:00:11]} 29. Qe4 {[%emt 0:00:13]} e5 1-0

[Event "RUS-chT Rapid Men 2018"]
[Site "Sochi"]
[Date "2018.10.09"]
[Round "6"]
[White "Shcherbakov, Ruslan"]
[Black "Nuristani, Iman"]
[Result "1-0"]
[ECO "A05"]
[WhiteElo "2516"]
[BlackElo "2242"]
[Annotator "ChessBase"]
[PlyCount "77"]
[EventDate "2018.10.05"]
[EventType "swiss"]
[EventCountry "RUS"]
[SourceTitle "playchess.com"]
[Source "ChessBase"]
[SourceQuality "1"]
[TimeControl "900+10"]

1. Nf3 {[%emt 0:00:00]} Nf6 {[%emt 0:00:00]} 2. c4 {[%emt 0:00:00]} b6 {[%emt 0:00:00]} 3. g3 {[%emt 0:00:04]} Bb7 {[%emt 0:00:00]} 4. Bg2 {[%emt 0:00:01]} e6 {[%emt 0:00:02]} 5. O-O {[%emt 0:00:07]} Be7 {[%emt 0:00:02]} 6. b3 {[%emt 0:00:49]} O-O {[%emt 0:00:14]} 7. Bb2 {[%emt 0:00:01]} c5 {[%emt 0:01:23]} 8. e3 {[%emt 0:00:03]} d6 {[%emt 0:00:57]} 9. Qe2 {[%emt 0:00:05]} Nbd7 {[%emt 0:00:04]} 10. d4 {[%emt 0:00:04]} Qc7 {[%emt 0:00:49]} 11. Rd1 {[%emt 0:00:14]} d5 {[%emt 0:01:05]} 12. cxd5 {[%emt 0:00:24]} Bxd5 {[%emt 0:03:31]} 13. Nc3 {[%emt 0:00:12]} Bc6 {[%emt 0:02:18]} 14. e4 {[%emt 0:00:17]} cxd4 {[%emt 0:00:59]} 15. Nxd4 {[%emt 0:00:02]} e5 {[%emt 0:00:20]} 16. Nf5 {[%emt 0:00:22]} Bc5 {[%emt 0:00:58]} 17. Nd5 {[%emt 0:00:14]} Qb7 {[%emt 0:01:49]} 18. Rac1 {[%emt 0:03:46]} Rfe8 {[%emt 0:00:17]} 19. Rxc5 {[%emt 0:02:09]} bxc5 {[%emt 0:00:21]} 20. Nd6 {[%emt 0:00:03]} Qb8 {[%emt 0:01:56]} 21. Nxe8 {[%emt 0:00:04]} Qxe8 {[%emt 0:00:23]} 22. Nc7 {[%emt 0:00:03]} Qc8 {[%emt 0:00:02]} 23. Nxa8 {[%emt 0:00:02]} Qxa8 {[%emt 0:00:02]} 24. f3 {[%emt 0:00:18]} Qb8 {[%emt 0:00:26]} 25. Bc3 {[%emt 0:00:08]} Nf8 {[%emt 0:00:53]} 26. Bh3 {[%emt 0:00:07]} h6 {[%emt 0:00:09]} 27. Qc4 {[%emt 0:00:17]} N8d7 {[%emt 0:00:14]} 28. Ba5 {[%emt 0:01:16]} Bb5 {[%emt 0:00:12]} 29. Qc3 {[%emt 0:00:10]} Qb7 {[%emt 0:00:13]} 30. Bd8 {[%emt 0:01:40]} Qb8 {[%emt 0:00:01]} 31. Bxf6 {[%emt 0:01:20]} Nxf6 {[%emt 0:00:03]} 32. Qxc5 {[%emt 0:00:02]} Be2 {[%emt 0:00:02]} 33. Rc1 {[%emt 0:00:04]} Bxf3 {[%emt 0:00:08]} 34. Qc8+ {[%emt 0:00:08]} Qxc8 {[%emt 0:00:02]} 35. Rxc8+ {[%emt 0:00:01]} Kh7 {[%emt 0:00:01]} 36. Bg2 {[%emt 0:00:03]} Be2 {[%emt 0:00:51]} 37. Rc7 {[%emt 0:00:04]} a6 {[%emt 0:00:06]} 38. Rxf7 {[%emt 0:00:09]} Kg6 {[%emt 0:00:14]} 39. Re7 {[%emt 0:00:03]} 1-0

[Event "RUS-chT Rapid Men 2018"]
[Site "Sochi"]
[Date "2018.10.09"]
[Round "6"]
[White "Usmanov, Vasily"]
[Black "Iljiushenok, Ilia"]
[Result "1/2-1/2"]
[ECO "A41"]
[WhiteElo "2453"]
[BlackElo "2539"]
[Annotator "RC"]
[PlyCount "82"]
[EventDate "2018.10.05"]
[EventType "swiss"]
[EventCountry "RUS"]
[SourceTitle "playchess.com"]
[Source "ChessBase"]
[SourceQuality "1"]
[TimeControl "900+10"]

1. d4 {[%emt 0:00:00]} d6 {[%emt 0:00:00]} 2. Nf3 {[%emt 0:00:05]} Nf6 {[%emt 0:00:00]} 3. g3 {[%emt 0:00:16]} g6 {[%emt 0:00:00]} 4. Bg2 {[%emt 0:00:00]} Bg7 {[%emt 0:00:00]} 5. O-O {[%emt 0:00:04]} O-O {[%emt 0:00:00]} 6. c3 {[%emt 0:00:30]} Nbd7 {[%emt 0:00:32]} 7. Bf4 {[%emt 0:00:08]} Nh5 {[%emt 0:00:52]} 8. Bg5 {[%emt 0:00:27]} h6 {[%emt 0:00:09]} 9. Be3 {[%emt 0:00:12]} e5 {[%emt 0:00:58]} 10. dxe5 {[%emt 0:01:50]} dxe5 {[%emt 0:00:02]} 11. Na3 {[%emt 0:01:10]} Qe7 {[%emt 0:03:54]} 12. Qa4 {[%emt 0:02:13]} c6 {[%emt 0:03:13]} 13. Rfd1 {[%emt 0:00:29]} e4 {[%emt 0:00:25]} 14. Nh4 {[%emt 0:02:29]} Ndf6 {[%emt 0:00:42]} 15. Bf1 {[%emt 0:01:30]} g5 {[%emt 0:00:05]} 16. Ng2 {[%emt 0:00:03]} Bh3 {[%emt 0:00:54]} 17. Qc4 {[%emt 0:01:11]} Nd7 {[%emt 0:01:19]} 18. Nc2 {[%emt 0:00:31]} Nhf6 {[%emt 0:00:27]} 19. Bd4 {[%emt 0:01:04]} c5 {[%emt 0:01:02]} 20. Bxf6 {[%emt 0:01:04]} Nxf6 {[%emt 0:00:01]} 21. Nce3 {[%emt 0:00:03]} Be6 {[%emt 0:00:07]} 22. Qa4 {[%emt 0:00:18]} a6 {[%emt 0:00:01]} 23. Qa5 {[%emt 0:00:23]} Rac8 {[%emt 0:00:12]} 24. h4 {[%emt 0:00:11]} Rfd8 {[%emt 0:00:44]} 25. Qb6 {[%emt 0:00:18]} Kh7 {[%emt 0:01:04]} 26. hxg5 {[%emt 0:00:01]} hxg5 {[%emt 0:00:00]} 27. Ne1 {[%emt 0:00:04]} Nd5 {[%emt 0:00:23]} 28. Nxd5 {[%emt 0:00:06]} Bxd5 {[%emt 0:00:01]} 29. Bh3 {[%emt 0:00:38]} Rc6 {[%emt 0:00:01]} 30. Qa5 {[%emt 0:00:01]} e3 {[%emt 0:00:23]} 31. Bf5+ {[%emt 0:00:20]} Kg8 {[%emt 0:00:04]} 32. Nf3 {[%emt 0:00:29]} exf2+ {[%emt 0:00:14]} 33. Kxf2 {[%emt 0:00:02]} Re8 {[%emt 0:00:12]} 34. e4 {[%emt 0:00:45]} Be6 {[%emt 0:00:01]} 35. Re1 {[%emt 0:00:15]} g4 {[%emt 0:00:01]} 36. Nh4 {[%emt 0:00:04]} Rd6 {[%emt 0:01:18]} 37. Re2 {[%emt 0:00:50]} Bc4 {[%emt 0:00:01]} 38. Rae1 {[%emt 0:00:11]} Bxe2 {[%emt 0:00:02]} 39. Rxe2 {[%emt 0:00:00]} Be5 {[%emt 0:00:29]} 40. Qxc5 {[%emt 0:00:08]} Bxg3+ {[%emt 0:00:04]} 41. Kg2 {[%emt 0:00:02]} Qxh4 {[%emt 0:00:03]} 1/2-1/2

[Event "RUS-chT Rapid Men 2018"]
[Site "Sochi"]
[Date "2018.10.09"]
[Round "6"]
[White "Vastrukhin, Oleg"]
[Black "Kryakvin, Dmitry"]
[Result "0-1"]
[ECO "A00"]
[WhiteElo "2413"]
[BlackElo "2595"]
[Annotator "ChessBase"]
[PlyCount "94"]
[EventDate "2018.10.05"]
[EventType "swiss"]
[EventCountry "RUS"]
[SourceTitle "playchess.com"]
[Source "ChessBase"]
[SourceQuality "1"]
[TimeControl "900+10"]

1. g3 {[%emt 0:00:00]} e5 {[%emt 0:00:00]} 2. Bg2 {[%emt 0:00:00]} d5 {[%emt 0:00:00]} 3. c3 {[%emt 0:00:01]} Nf6 {[%emt 0:00:00]} 4. d4 {[%emt 0:00:01]} Nbd7 {[%emt 0:00:00]} 5. dxe5 {[%emt 0:01:23]} Nxe5 {[%emt 0:00:00]} 6. Nd2 {[%emt 0:00:04]} c6 {[%emt 0:00:03]} 7. Ngf3 {[%emt 0:00:02]} Nxf3+ {[%emt 0:00:02]} 8. Nxf3 {[%emt 0:00:25]} Bc5 {[%emt 0:00:01]} 9. O-O {[%emt 0:00:02]} O-O {[%emt 0:00:02]} 10. Qc2 {[%emt 0:00:40]} Re8 {[%emt 0:01:14]} 11. c4 {[%emt 0:00:42]} dxc4 {[%emt 0:01:20]} 12. Qxc4 {[%emt 0:00:02]} Qb6 {[%emt 0:00:46]} 13. e3 {[%emt 0:01:18]} Be6 {[%emt 0:00:20]} 14. Qc2 {[%emt 0:00:16]} Bd5 {[%emt 0:00:13]} 15. Nd2 {[%emt 0:02:49]} Rad8 {[%emt 0:02:45]} 16. Nb3 {[%emt 0:01:05]} Bf8 {[%emt 0:02:02]} 17. Bd2 {[%emt 0:00:01]} Bb4 {[%emt 0:00:05]} 18. Bxb4 {[%emt 0:02:58]} Qxb4 {[%emt 0:00:02]} 19. Nd4 {[%emt 0:00:02]} c5 {[%emt 0:00:38]} 20. Nb3 {[%emt 0:00:53]} Bxg2 {[%emt 0:00:27]} 21. Kxg2 {[%emt 0:00:02]} b6 {[%emt 0:00:34]} 22. Rad1 {[%emt 0:00:27]} Qe4+ {[%emt 0:02:19]} 23. Qxe4 {[%emt 0:00:03]} Nxe4 {[%emt 0:00:00]} 24. Kf3 {[%emt 0:00:32]} f5 {[%emt 0:00:03]} 25. Ke2 {[%emt 0:00:17]} Kf7 {[%emt 0:00:05]} 26. Rxd8 {[%emt 0:00:38]} Rxd8 {[%emt 0:00:06]} 27. Rc1 {[%emt 0:00:02]} g5 {[%emt 0:01:01]} 28. f3 {[%emt 0:00:05]} Nf6 {[%emt 0:00:04]} 29. Nd2 {[%emt 0:00:13]} Ke6 {[%emt 0:00:20]} 30. a3 {[%emt 0:00:36]} g4 {[%emt 0:01:15]} 31. Rc4 {[%emt 0:00:35]} gxf3+ {[%emt 0:00:44]} 32. Nxf3 {[%emt 0:00:01]} Ne4 {[%emt 0:00:03]} 33. Ra4 {[%emt 0:00:40]} a5 {[%emt 0:00:20]} 34. g4 {[%emt 0:00:18]} Rg8 {[%emt 0:00:15]} 35. h3 {[%emt 0:00:33]} Kd5 {[%emt 0:00:12]} 36. Nd2 {[%emt 0:01:46]} Nxd2 {[%emt 0:00:25]} 37. Kxd2 {[%emt 0:00:02]} fxg4 {[%emt 0:00:24]} 38. hxg4 {[%emt 0:00:01]} c4 {[%emt 0:00:14]} 39. b4 {[%emt 0:00:01]} Rxg4 {[%emt 0:00:42]} 40. Kc3 {[%emt 0:00:01]} Re4 {[%emt 0:00:29]} 41. bxa5 {[%emt 0:00:11]} b5 {[%emt 0:00:03]} 42. Rb4 {[%emt 0:00:18]} Rxe3+ {[%emt 0:00:10]} 43. Kb2 {[%emt 0:00:25]} Rb3+ {[%emt 0:00:41]} 44. Rxb3 {[%emt 0:00:01]} cxb3 {[%emt 0:00:01]} 45. Kxb3 {[%emt 0:00:05]} h5 {[%emt 0:00:01]} 46. a4 {[%emt 0:00:01]} bxa4+ {[%emt 0:00:06]} 47. Kxa4 {[%emt 0:00:01]} Ke5 0-1

[Event "RUS-chT Rapid Men 2018"]
[Site "Sochi"]
[Date "2018.10.09"]
[Round "6"]
[White "Derjabin, Ilja"]
[Black "Antipov, Mikhail Al."]
[Result "1-0"]
[ECO "E27"]
[WhiteElo "2345"]
[BlackElo "2593"]
[Annotator "ChessBase"]
[PlyCount "89"]
[EventDate "2018.10.05"]
[EventType "swiss"]
[EventCountry "RUS"]
[SourceTitle "playchess.com"]
[Source "ChessBase"]
[SourceQuality "1"]
[TimeControl "900+10"]

1. d4 {[%emt 0:00:11]} Nf6 {[%emt 0:00:00]} 2. c4 {[%emt 0:00:02]} e6 {[%emt 0:00:00]} 3. Nc3 {[%emt 0:00:01]} Bb4 {[%emt 0:00:00]} 4. a3 {[%emt 0:00:02]} Bxc3+ {[%emt 0:00:00]} 5. bxc3 {[%emt 0:00:01]} O-O {[%emt 0:00:00]} 6. f3 {[%emt 0:00:01]} d5 {[%emt 0:00:10]} 7. e3 {[%emt 0:00:03]} c6 {[%emt 0:00:02]} 8. cxd5 {[%emt 0:00:08]} cxd5 {[%emt 0:00:01]} 9. Bd3 {[%emt 0:00:02]} b6 {[%emt 0:00:03]} 10. Ne2 {[%emt 0:00:01]} Ba6 {[%emt 0:00:02]} 11. O-O {[%emt 0:00:13]} Qd7 {[%emt 0:01:18]} 12. e4 {[%emt 0:00:11]} h6 {[%emt 0:01:27]} 13. e5 {[%emt 0:02:04]} Ne8 {[%emt 0:00:01]} 14. g4 {[%emt 0:00:12]} Bxd3 {[%emt 0:00:34]} 15. Qxd3 {[%emt 0:00:01]} Nc6 {[%emt 0:00:01]} 16. Nf4 {[%emt 0:00:14]} Rc8 {[%emt 0:00:41]} 17. Ra2 {[%emt 0:00:03]} f6 {[%emt 0:01:39]} 18. Ng6 {[%emt 0:00:35]} Rf7 {[%emt 0:00:09]} 19. exf6 {[%emt 0:00:16]} Rxf6 {[%emt 0:00:01]} 20. g5 {[%emt 0:00:17]} hxg5 {[%emt 0:00:02]} 21. Bxg5 {[%emt 0:00:02]} Rf5 {[%emt 0:00:07]} 22. Rg2 {[%emt 0:00:03]} Nd6 {[%emt 0:00:21]} 23. h4 {[%emt 0:02:22]} Nf7 {[%emt 0:04:41]} 24. f4 {[%emt 0:00:35]} Nh8 {[%emt 0:00:33]} 25. h5 {[%emt 0:02:27]} Nxg6 {[%emt 0:02:14]} 26. hxg6 Qe8 27. Bh4 {[%emt 0:01:17]} Rh5 {[%emt 0:00:02]} 28. Bg5 {[%emt 0:00:15]} Ne7 {[%emt 0:00:23]} 29. Qe2 {[%emt 0:00:11]} Qxg6 {[%emt 0:00:14]} 30. Bxe7 {[%emt 0:00:07]} Qf7 {[%emt 0:02:03]} 31. Bf6 {[%emt 0:02:37]} Rh7 {[%emt 0:00:01]} 32. Qe5 {[%emt 0:00:29]} Rxc3 {[%emt 0:00:34]} 33. Qb8+ {[%emt 0:00:08]} Qf8 {[%emt 0:00:02]} 34. Qxf8+ {[%emt 0:00:02]} Kxf8 {[%emt 0:00:00]} 35. Be5 {[%emt 0:00:04]} Kf7 {[%emt 0:00:33]} 36. f5 {[%emt 0:00:11]} exf5 {[%emt 0:00:21]} 37. Rxf5+ {[%emt 0:00:03]} Ke6 {[%emt 0:00:01]} 38. Rf1 {[%emt 0:00:22]} g5 {[%emt 0:00:22]} 39. Rxg5 {[%emt 0:00:29]} Rxa3 {[%emt 0:00:01]} 40. Rg6+ {[%emt 0:00:03]} Kd7 {[%emt 0:00:01]} 41. Rc1 {[%emt 0:00:30]} Re7 {[%emt 0:00:44]} 42. Rc7+ {[%emt 0:00:06]} Kd8 {[%emt 0:00:01]} 43. Rg8+ {[%emt 0:00:12]} Re8 {[%emt 0:00:01]} 44. Rgg7 {[%emt 0:00:03]} Rf8 {[%emt 0:00:24]} 45. Rb7 {[%emt 0:00:12]} 1-0